[Event "Late-Titled-Tuesday-Blitz-April-23-2024"]
[Site "Chess.com"]
[Date "2024.04.23"]
[Round "11"]
[White "ferrufino64"]
[Black "scandalgod"]
[Result "0-1"]
[WhiteElo "2308"]
[BlackElo "2504"]
[TimeControl "180+1"]
[EndTime "16:07:04 PDT"]
[Termination "scandalgod won by checkmate"]

1. e4 {[%clk 0:02:59.8]} 1... e5 {[%clk 0:02:59.3]} 2. d4 {[%clk 0:02:59.3]}
2... exd4 {[%clk 0:02:59]} 3. Qxd4 {[%clk 0:02:58.1]} 3... Nc6 {[%clk
0:02:59.5]} 4. Qe3 {[%clk 0:02:56.2]} 4... Nf6 {[%clk 0:02:59.7]} 5. Bd2 {[%clk
0:02:55]} 5... Bb4 {[%clk 0:02:55.2]} 6. Nc3 {[%clk 0:02:55.1]} 6... O-O {[%clk
0:02:54.7]} 7. O-O-O {[%clk 0:02:55.1]} 7... Re8 {[%clk 0:02:54.9]} 8. Bc4
{[%clk 0:02:55.3]} 8... d6 {[%clk 0:02:46.7]} 9. f3 {[%clk 0:02:54]} 9... Be6
{[%clk 0:02:44.9]} 10. Bxe6 {[%clk 0:02:54]} 10... Rxe6 {[%clk 0:02:45.5]} 11.
Nge2 {[%clk 0:02:54.7]} 11... d5 {[%clk 0:02:44.5]} 12. Be1 {[%clk 0:02:54.9]}
12... Rd6 {[%clk 0:01:59.4]} 13. Nb5 {[%clk 0:02:32.6]} 13... Rd7 {[%clk
0:01:53.4]} 14. Bh4 {[%clk 0:02:25.4]} 14... Be7 {[%clk 0:01:49.8]} 15. e5
{[%clk 0:02:14.3]} 15... Ng4 {[%clk 0:01:40.7]} 16. fxg4 {[%clk 0:02:10.4]}
16... Bxh4 {[%clk 0:01:40.7]} 17. Kb1 {[%clk 0:02:10.3]} 17... Bg5 {[%clk
0:01:28.6]} 18. Qg3 {[%clk 0:02:06.3]} 18... d4 {[%clk 0:00:59]} 19. h4 {[%clk
0:02:01.2]} 19... Be3 {[%clk 0:00:59.1]} 20. Na3 {[%clk 0:01:45]} 20... Qe7
{[%clk 0:00:53.7]} 21. Nc4 {[%clk 0:01:44.8]} 21... Rad8 {[%clk 0:00:49.9]} 22.
Rde1 {[%clk 0:01:21.9]} 22... Qc5 {[%clk 0:00:46]} 23. b3 {[%clk 0:01:12]} 23...
Nb4 {[%clk 0:00:40.6]} 24. Nc1 {[%clk 0:00:37.3]} 24... Bxc1 {[%clk 0:00:28.1]}
25. Rxc1 {[%clk 0:00:37.2]} 25... b5 {[%clk 0:00:27.5]} 26. a3 {[%clk
0:00:36.6]} 26... Nd5 {[%clk 0:00:26.2]} 27. e6 {[%clk 0:00:33.6]} 27... fxe6
{[%clk 0:00:20.6]} 28. Ne5 {[%clk 0:00:29.1]} 28... Qxa3 {[%clk 0:00:19.4]} 29.
c4 {[%clk 0:00:28.6]} 29... Nc3+ {[%clk 0:00:16.7]} 30. Rxc3 {[%clk 0:00:28.2]}
30... dxc3 {[%clk 0:00:16.6]} 31. Nxd7 {[%clk 0:00:28.1]} 31... Qb2# {[%clk
0:00:15.7]} 0-1

[Event "Late-Titled-Tuesday-Blitz-April-23-2024"]
[Site "Chess.com"]
[Date "2024.04.23"]
[Round "11"]
[White "Arteler"]
[Black "maurovargas01"]
[Result "0-1"]
[WhiteElo "2246"]
[BlackElo "1936"]
[TimeControl "180+1"]
[EndTime "16:07:04 PDT"]
[Termination "maurovargas01 won on time"]

1. e4 {[%clk 0:03:00.9]} 1... c5 {[%clk 0:02:55]} 2. Nf3 {[%clk 0:03:00.5]} 2...
d6 {[%clk 0:02:38]} 3. d4 {[%clk 0:03:00.6]} 3... cxd4 {[%clk 0:02:37.5]} 4.
Nxd4 {[%clk 0:03:00.7]} 4... Nc6 {[%clk 0:02:37.6]} 5. Nc3 {[%clk 0:03:00.5]}
5... Nf6 {[%clk 0:02:37.4]} 6. f3 {[%clk 0:02:59.6]} 6... g6 {[%clk 0:02:36.6]}
7. Be3 {[%clk 0:02:58.5]} 7... Bg7 {[%clk 0:02:36.4]} 8. Qd2 {[%clk 0:02:55.6]}
8... Bd7 {[%clk 0:02:36.1]} 9. O-O-O {[%clk 0:02:54]} 9... Rc8 {[%clk
0:02:35.6]} 10. g4 {[%clk 0:02:48.5]} 10... h5 {[%clk 0:02:32.3]} 11. gxh5
{[%clk 0:02:29.7]} 11... Nxh5 {[%clk 0:02:30.4]} 12. Be2 {[%clk 0:02:16.9]}
12... Nf6 {[%clk 0:02:24.3]} 13. f4 {[%clk 0:01:57.9]} 13... Na5 {[%clk
0:02:14.3]} 14. Ncb5 {[%clk 0:01:35.7]} 14... a6 {[%clk 0:02:09.8]} 15. Nc3
{[%clk 0:01:20.1]} 15... Nc4 {[%clk 0:02:01.5]} 16. Bxc4 {[%clk 0:01:12.3]}
16... Rxc4 {[%clk 0:02:00.9]} 17. f5 {[%clk 0:01:07.1]} 17... Rxc3 {[%clk
0:01:51.3]} 18. Qxc3 {[%clk 0:00:55.6]} 18... Nxe4 {[%clk 0:01:48.7]} 19. Qd3
{[%clk 0:00:49.7]} 19... Bxf5 {[%clk 0:01:47.5]} 20. Nxf5 {[%clk 0:00:45]} 20...
gxf5 {[%clk 0:01:47.2]} 21. Rhf1 {[%clk 0:00:33]} 21... e6 {[%clk 0:01:44.7]}
22. Bf4 {[%clk 0:00:29.5]} 22... d5 {[%clk 0:01:31.4]} 23. Bg3 {[%clk
0:00:21.7]} 23... Qb6 {[%clk 0:01:27.7]} 24. Qb3 {[%clk 0:00:14.8]} 24... Bh6+
{[%clk 0:01:13]} 25. Kb1 {[%clk 0:00:10.2]} 25... Qxb3 {[%clk 0:01:10.9]} 26.
axb3 {[%clk 0:00:08.4]} 26... Nd2+ {[%clk 0:01:10]} 27. Rxd2 {[%clk 0:00:08.8]}
27... Bxd2 {[%clk 0:01:09.7]} 28. Rf2 {[%clk 0:00:05.4]} 28... Be3 {[%clk
0:01:08.6]} 29. Re2 {[%clk 0:00:04.6]} 29... d4 {[%clk 0:01:06.8]} 30. c3 {[%clk
0:00:04]} 30... f4 {[%clk 0:01:06.1]} 31. Bf2 {[%clk 0:00:03.1]} 31... e5 {[%clk
0:01:04.4]} 32. Bxe3 {[%clk 0:00:02.4]} 32... dxe3 {[%clk 0:01:02.3]} 33. Kc2
{[%clk 0:00:02]} 33... f5 {[%clk 0:00:59.6]} 34. Kd3 {[%clk 0:00:02]} 34... Kf7
{[%clk 0:00:55.9]} 35. c4 {[%clk 0:00:02]} 35... Kf6 {[%clk 0:00:55.3]} 36. b4
{[%clk 0:00:02.2]} 36... e4+ {[%clk 0:00:54.6]} 0-1

[Event "Late-Titled-Tuesday-Blitz-April-23-2024"]
[Site "Chess.com"]
[Date "2024.04.23"]
[Round "11"]
[White "rhungaski"]
[Black "jcibarra"]
[Result "0-1"]
[WhiteElo "2543"]
[BlackElo "2974"]
[TimeControl "180+1"]
[EndTime "16:07:05 PDT"]
[Termination "jcibarra won by resignation"]

1. b3 {[%clk 0:03:00.9]} 1... c5 {[%clk 0:02:59]} 2. Bb2 {[%clk 0:03:00.9]} 2...
d6 {[%clk 0:02:59.6]} 3. c4 {[%clk 0:03:01.3]} 3... e5 {[%clk 0:02:59]} 4. g3
{[%clk 0:03:01.4]} 4... f5 {[%clk 0:02:58.7]} 5. Bg2 {[%clk 0:03:02.1]} 5... Nf6
{[%clk 0:02:59.3]} 6. Nc3 {[%clk 0:03:02.2]} 6... Be7 {[%clk 0:02:59.4]} 7. e3
{[%clk 0:03:02.6]} 7... Nc6 {[%clk 0:02:59]} 8. Nge2 {[%clk 0:03:01.5]} 8... O-O
{[%clk 0:02:58.4]} 9. O-O {[%clk 0:03:00.6]} 9... Qe8 {[%clk 0:02:51.9]} 10. d4
{[%clk 0:02:57.9]} 10... Qh5 {[%clk 0:02:48.7]} 11. dxc5 {[%clk 0:02:47.5]}
11... dxc5 {[%clk 0:02:48]} 12. Nd5 {[%clk 0:02:47.5]} 12... Qf7 {[%clk
0:02:35.2]} 13. Nxe7+ {[%clk 0:02:29.1]} 13... Qxe7 {[%clk 0:02:34.9]} 14. Bxc6
{[%clk 0:02:29.4]} 14... bxc6 {[%clk 0:02:35.4]} 15. f4 {[%clk 0:02:30]} 15...
Ng4 {[%clk 0:02:25]} 16. Qd2 {[%clk 0:02:18.9]} 16... Rd8 {[%clk 0:02:18.4]} 17.
Qc3 {[%clk 0:02:19]} 17... e4 {[%clk 0:02:12]} 18. Rad1 {[%clk 0:02:12.6]} 18...
Be6 {[%clk 0:02:11.8]} 19. h3 {[%clk 0:02:12]} 19... Nf6 {[%clk 0:02:12.1]} 20.
Qe5 {[%clk 0:02:08.2]} 20... Rd3 {[%clk 0:02:10.2]} 21. Rxd3 {[%clk 0:01:38.8]}
21... exd3 {[%clk 0:02:09.9]} 22. Nc3 {[%clk 0:01:38]} 22... Rd8 {[%clk
0:02:07.4]} 23. Rd1 {[%clk 0:01:33.6]} 23... Qf7 {[%clk 0:02:00.5]} 24. Kg2
{[%clk 0:01:13.9]} 24... h5 {[%clk 0:01:38]} 25. Rd2 {[%clk 0:01:07.5]} 25... h4
{[%clk 0:01:37]} 26. gxh4 {[%clk 0:01:05.5]} 26... Qg6+ {[%clk 0:01:35.2]} 27.
Kh2 {[%clk 0:01:04]} 27... Re8 {[%clk 0:01:29.1]} 28. Rg2 {[%clk 0:00:56.6]}
28... Qh6 {[%clk 0:01:29.5]} 29. Na4 {[%clk 0:00:28.5]} 29... Bd5 {[%clk
0:01:15.3]} 30. Rxg7+ {[%clk 0:00:19.2]} 30... Qxg7 {[%clk 0:01:15.5]} 31. Qxe8+
{[%clk 0:00:18.5]} 31... Nxe8 {[%clk 0:01:16]} 32. Bxg7 {[%clk 0:00:18.9]} 32...
d2 {[%clk 0:01:00.8]} 33. Nc3 {[%clk 0:00:17.7]} 33... Bf3 {[%clk 0:00:55.5]}
34. Be5 {[%clk 0:00:08.2]} 34... a6 {[%clk 0:00:49.5]} 35. Bb8 {[%clk
0:00:07.6]} 35... Nf6 {[%clk 0:00:48]} 36. Ba7 {[%clk 0:00:03.3]} 36... Ne4
{[%clk 0:00:44.6]} 0-1

[Event "Late-Titled-Tuesday-Blitz-April-23-2024"]
[Site "Chess.com"]
[Date "2024.04.23"]
[Round "11"]
[White "Rytenko_V"]
[Black "kripri"]
[Result "0-1"]
[WhiteElo "2497"]
[BlackElo "2361"]
[TimeControl "180+1"]
[EndTime "16:07:05 PDT"]
[Termination "kripri won by resignation"]

1. e4 {[%clk 0:02:57.9]} 1... c5 {[%clk 0:02:49]} 2. Nf3 {[%clk 0:02:57.6]} 2...
d6 {[%clk 0:02:49.1]} 3. d4 {[%clk 0:02:57.8]} 3... cxd4 {[%clk 0:02:49.8]} 4.
Nxd4 {[%clk 0:02:58.5]} 4... Nf6 {[%clk 0:02:48.9]} 5. Nc3 {[%clk 0:02:59]} 5...
a6 {[%clk 0:02:49.3]} 6. Be3 {[%clk 0:02:57.8]} 6... e5 {[%clk 0:02:45.5]} 7.
Nb3 {[%clk 0:02:57.7]} 7... Be6 {[%clk 0:02:45.3]} 8. f3 {[%clk 0:02:54.7]} 8...
Be7 {[%clk 0:02:43]} 9. Qd2 {[%clk 0:02:50.5]} 9... h5 {[%clk 0:02:41.6]} 10.
Nd5 {[%clk 0:02:48.6]} 10... Nxd5 {[%clk 0:02:35.2]} 11. exd5 {[%clk 0:02:48.9]}
11... Bf5 {[%clk 0:02:35.8]} 12. Be2 {[%clk 0:02:46.3]} 12... a5 {[%clk
0:02:14]} 13. a4 {[%clk 0:02:38.1]} 13... Nd7 {[%clk 0:02:06.5]} 14. Bb5 {[%clk
0:02:25.9]} 14... O-O {[%clk 0:02:00.7]} 15. O-O {[%clk 0:02:26.4]} 15... Rc8
{[%clk 0:01:53.8]} 16. Qxa5 {[%clk 0:02:05]} 16... Bxc2 {[%clk 0:01:40.9]} 17.
Qb4 {[%clk 0:01:47.4]} 17... Nf6 {[%clk 0:01:25.8]} 18. Na5 {[%clk 0:01:28.5]}
18... Nxd5 {[%clk 0:01:19.6]} 19. Nxb7 {[%clk 0:01:11.7]} 19... Nxb4 {[%clk
0:01:15.4]} 20. Nxd8 {[%clk 0:01:11]} 20... Rfxd8 {[%clk 0:01:16.3]} 21. Bb6
{[%clk 0:01:07.5]} 21... Rf8 {[%clk 0:01:15.6]} 22. a5 {[%clk 0:01:07.7]} 22...
Rb8 {[%clk 0:00:59.9]} 23. Rfc1 {[%clk 0:00:39.4]} 23... d5 {[%clk 0:00:59.7]}
24. Be2 {[%clk 0:00:24.5]} 24... d4 {[%clk 0:00:58.2]} 25. Bc7 {[%clk
0:00:21.6]} 25... Rbc8 {[%clk 0:00:53.3]} 26. Bxe5 {[%clk 0:00:21.1]} 26... d3
{[%clk 0:00:53.9]} 27. Bf1 {[%clk 0:00:15.5]} 27... d2 {[%clk 0:00:53.6]} 28.
Rd1 {[%clk 0:00:10.1]} 28... Bxd1 {[%clk 0:00:52.9]} 29. Rxd1 {[%clk 0:00:11]}
29... Rfd8 {[%clk 0:00:51.8]} 30. Kf2 {[%clk 0:00:10.1]} 30... Rc1 {[%clk
0:00:51.3]} 31. Ke2 {[%clk 0:00:10.5]} 31... Nd3 {[%clk 0:00:41.3]} 32. Bc3
{[%clk 0:00:09.6]} 32... Rxd1 {[%clk 0:00:36.3]} 33. Kxd1 {[%clk 0:00:10.5]}
33... Nf2+ {[%clk 0:00:36.6]} 0-1

[Event "Late-Titled-Tuesday-Blitz-April-23-2024"]
[Site "Chess.com"]
[Date "2024.04.23"]
[Round "11"]
[White "TigrVShlyape"]
[Black "lamomiajunior"]
[Result "1-0"]
[WhiteElo "3017"]
[BlackElo "2764"]
[TimeControl "180+1"]
[EndTime "16:07:08 PDT"]
[Termination "TigrVShlyape won on time"]

1. d4 {[%clk 0:03:00.9]} 1... Nf6 {[%clk 0:02:58.8]} 2. Bf4 {[%clk 0:02:57.1]}
2... d5 {[%clk 0:02:57.9]} 3. e3 {[%clk 0:02:57.2]} 3... c5 {[%clk 0:02:57.8]}
4. c3 {[%clk 0:02:56.1]} 4... Nc6 {[%clk 0:02:58.4]} 5. Nd2 {[%clk 0:02:55.1]}
5... Bf5 {[%clk 0:02:58.6]} 6. Qb3 {[%clk 0:02:53.5]} 6... Qc8 {[%clk
0:02:57.3]} 7. a4 {[%clk 0:02:53.8]} 7... c4 {[%clk 0:02:47]} 8. Qa2 {[%clk
0:02:52.6]} 8... e6 {[%clk 0:02:47.3]} 9. Ngf3 {[%clk 0:02:51.7]} 9... h6 {[%clk
0:02:46.2]} 10. Be2 {[%clk 0:02:50.9]} 10... Be7 {[%clk 0:02:46.4]} 11. b3
{[%clk 0:02:49.1]} 11... cxb3 {[%clk 0:02:45.2]} 12. Qxb3 {[%clk 0:02:49.4]}
12... O-O {[%clk 0:02:45]} 13. h3 {[%clk 0:02:47.3]} 13... Na5 {[%clk
0:02:45.1]} 14. Qb2 {[%clk 0:02:46.8]} 14... b6 {[%clk 0:02:44.9]} 15. O-O
{[%clk 0:02:46.3]} 15... Ne4 {[%clk 0:02:44.6]} 16. Nxe4 {[%clk 0:02:42.3]}
16... Bxe4 {[%clk 0:02:44.4]} 17. Nd2 {[%clk 0:02:42.3]} 17... Bg6 {[%clk
0:02:44.3]} 18. Rfc1 {[%clk 0:02:42.4]} 18... Qb7 {[%clk 0:02:37.8]} 19. c4
{[%clk 0:02:21.9]} 19... Nxc4 {[%clk 0:02:36.6]} 20. Nxc4 {[%clk 0:02:21.4]}
20... dxc4 {[%clk 0:02:37]} 21. Rxc4 {[%clk 0:02:16.2]} 21... Rac8 {[%clk
0:02:35]} 22. Bf3 {[%clk 0:02:06]} 22... Be4 {[%clk 0:02:30.8]} 23. Bxe4 {[%clk
0:02:04.5]} 23... Qxe4 {[%clk 0:02:31.7]} 24. Rac1 {[%clk 0:02:01.6]} 24... Rxc4
{[%clk 0:01:37.1]} 25. Rxc4 {[%clk 0:01:59.6]} 25... Qd3 {[%clk 0:01:22.3]} 26.
Rc7 {[%clk 0:01:52.9]} 26... Ba3 {[%clk 0:01:04.1]} 27. Qb5 {[%clk 0:01:41.5]}
27... Qd1+ {[%clk 0:00:27]} 28. Kh2 {[%clk 0:01:39.7]} 28... a5 {[%clk
0:00:17.9]} 29. Rc6 {[%clk 0:01:31.7]} 29... Qd2 {[%clk 0:00:13.9]} 30. Bg3
{[%clk 0:01:30.1]} 30... Bb4 {[%clk 0:00:11.5]} 31. Qxb6 {[%clk 0:01:21.5]}
31... Qd1 {[%clk 0:00:07.8]} 32. Qb5 {[%clk 0:01:20.5]} 32... h5 {[%clk
0:00:07.2]} 33. Rc7 {[%clk 0:01:01.9]} 33... h4 {[%clk 0:00:04.4]} 34. Be5
{[%clk 0:00:54.3]} 34... Qe1 {[%clk 0:00:02]} 35. Rc2 {[%clk 0:00:44.3]} 35...
f6 {[%clk 0:00:01.4]} 36. Bf4 {[%clk 0:00:42]} 1-0

[Event "Late-Titled-Tuesday-Blitz-April-23-2024"]
[Site "Chess.com"]
[Date "2024.04.23"]
[Round "11"]
[White "dosto07"]
[Black "MarlonJodar"]
[Result "1-0"]
[WhiteElo "2493"]
[BlackElo "2285"]
[TimeControl "180+1"]
[EndTime "16:07:18 PDT"]
[Termination "dosto07 won on time"]

1. e4 {[%clk 0:02:52.4]} 1... e5 {[%clk 0:02:59.6]} 2. Nf3 {[%clk 0:02:52.2]}
2... Nc6 {[%clk 0:02:59.6]} 3. Bb5 {[%clk 0:02:52.3]} 3... a6 {[%clk 0:02:59.9]}
4. Ba4 {[%clk 0:02:52.7]} 4... Nf6 {[%clk 0:02:59.7]} 5. O-O {[%clk 0:02:53]}
5... Be7 {[%clk 0:02:59.5]} 6. Re1 {[%clk 0:02:53.1]} 6... b5 {[%clk 0:02:58.7]}
7. Bb3 {[%clk 0:02:53.8]} 7... d6 {[%clk 0:02:59]} 8. c3 {[%clk 0:02:53.8]} 8...
O-O {[%clk 0:02:58.9]} 9. h3 {[%clk 0:02:54.3]} 9... Nb8 {[%clk 0:02:58.9]} 10.
d4 {[%clk 0:02:53.8]} 10... Nbd7 {[%clk 0:02:59.4]} 11. Nbd2 {[%clk 0:02:51.6]}
11... Bb7 {[%clk 0:02:59.5]} 12. Bc2 {[%clk 0:02:45]} 12... Re8 {[%clk
0:02:59.7]} 13. Nf1 {[%clk 0:02:39.3]} 13... Bf8 {[%clk 0:02:59.5]} 14. Ng3
{[%clk 0:02:39.6]} 14... g6 {[%clk 0:02:59.6]} 15. b3 {[%clk 0:02:38]} 15... Rc8
{[%clk 0:02:50.1]} 16. d5 {[%clk 0:02:37.5]} 16... c6 {[%clk 0:02:45.9]} 17. c4
{[%clk 0:02:37.8]} 17... Nb6 {[%clk 0:02:43.1]} 18. Rb1 {[%clk 0:02:36.1]} 18...
cxd5 {[%clk 0:02:26.9]} 19. cxd5 {[%clk 0:02:35.6]} 19... Nbxd5 {[%clk
0:02:25.7]} 20. exd5 {[%clk 0:02:36]} 20... Nxd5 {[%clk 0:02:25.6]} 21. Ne4
{[%clk 0:02:15.1]} 21... f5 {[%clk 0:02:13]} 22. Bg5 {[%clk 0:02:14.2]} 22...
Be7 {[%clk 0:02:12.6]} 23. Bxe7 {[%clk 0:02:12.9]} 23... Qxe7 {[%clk 0:02:13.5]}
24. b4 {[%clk 0:01:54.4]} 24... fxe4 {[%clk 0:01:54.9]} 25. Bb3 {[%clk
0:01:54.6]} 25... exf3 {[%clk 0:01:21.6]} 26. Bxd5+ {[%clk 0:01:54.8]} 26...
Bxd5 {[%clk 0:01:21.7]} 27. Qxd5+ {[%clk 0:01:55.2]} 27... Qe6 {[%clk
0:01:22.1]} 28. Qxf3 {[%clk 0:01:55.2]} 28... Rc2 {[%clk 0:01:20.3]} 29. a3
{[%clk 0:01:40.3]} 29... Rf8 {[%clk 0:01:06.1]} 30. Qe3 {[%clk 0:01:40.5]} 30...
Rfxf2 {[%clk 0:00:50]} 31. Qxf2 {[%clk 0:01:40.7]} 31... Rxf2 {[%clk 0:00:50.6]}
32. Kxf2 {[%clk 0:01:41.6]} 32... Qa2+ {[%clk 0:00:50.6]} 33. Kg1 {[%clk
0:01:40.1]} 33... Qxa3 {[%clk 0:00:50.4]} 34. Kh1 {[%clk 0:01:35.5]} 34... Kf7
{[%clk 0:00:49.2]} 35. Rec1 {[%clk 0:01:31.1]} 35... Ke6 {[%clk 0:00:48.6]} 36.
Rc6 {[%clk 0:01:28.7]} 36... a5 {[%clk 0:00:38.7]} 37. bxa5 {[%clk 0:01:26.5]}
37... Qxa5 {[%clk 0:00:39.6]} 38. Rd1 {[%clk 0:01:23.4]} 38... Qb4 {[%clk
0:00:36.5]} 39. Rc7 {[%clk 0:01:18]} 39... e4 {[%clk 0:00:33.9]} 40. Rxh7 {[%clk
0:01:12.4]} 40... e3 {[%clk 0:00:32]} 41. Rh8 {[%clk 0:01:11.7]} 41... Ke7
{[%clk 0:00:25.5]} 42. Rh7+ {[%clk 0:01:10.2]} 42... Kf6 {[%clk 0:00:24.3]} 43.
Rf1+ {[%clk 0:01:07.4]} 43... Ke5 {[%clk 0:00:14.2]} 44. Rh8 {[%clk 0:01:06.6]}
44... Kd4 {[%clk 0:00:09.4]} 45. Rf4+ {[%clk 0:01:04.6]} 45... Kc3 {[%clk
0:00:05.6]} 46. Rxb4 {[%clk 0:01:05.5]} 46... Kxb4 {[%clk 0:00:06.1]} 47. Re8
{[%clk 0:01:03.7]} 47... d5 {[%clk 0:00:05.1]} 48. Rxe3 {[%clk 0:01:03.9]} 48...
d4 {[%clk 0:00:05.4]} 49. Rg3 {[%clk 0:01:02.3]} 49... Kc4 {[%clk 0:00:03.2]}
50. Rxg6 {[%clk 0:01:02.2]} 50... d3 {[%clk 0:00:03.3]} 51. Kg1 {[%clk
0:01:01.7]} 1-0

[Event "Late-Titled-Tuesday-Blitz-April-23-2024"]
[Site "Chess.com"]
[Date "2024.04.23"]
[Round "11"]
[White "ChessGiantYouTube"]
[Black "th3d4rkness"]
[Result "1-0"]
[WhiteElo "2344"]
[BlackElo "2146"]
[TimeControl "180+1"]
[EndTime "16:07:20 PDT"]
[Termination "ChessGiantYouTube won by resignation"]

1. g3 {[%clk 0:02:55.8]} 1... Nf6 {[%clk 0:02:57.5]} 2. Bg2 {[%clk 0:02:49.8]}
2... g6 {[%clk 0:02:56.8]} 3. b3 {[%clk 0:02:50]} 3... Bg7 {[%clk 0:02:57.2]} 4.
Bb2 {[%clk 0:02:50.7]} 4... O-O {[%clk 0:02:57.4]} 5. e3 {[%clk 0:02:50.5]} 5...
d6 {[%clk 0:02:57.9]} 6. d3 {[%clk 0:02:50.4]} 6... Nc6 {[%clk 0:02:58.4]} 7.
Ne2 {[%clk 0:02:50.4]} 7... e5 {[%clk 0:02:58.9]} 8. Nd2 {[%clk 0:02:50.2]} 8...
Be6 {[%clk 0:02:57.5]} 9. h3 {[%clk 0:02:49.4]} 9... d5 {[%clk 0:02:55]} 10. a3
{[%clk 0:02:44]} 10... Qd7 {[%clk 0:02:54.5]} 11. b4 {[%clk 0:02:39.3]} 11... a6
{[%clk 0:02:54]} 12. Nb3 {[%clk 0:02:39.8]} 12... b6 {[%clk 0:02:50.6]} 13. Qd2
{[%clk 0:02:06.4]} 13... Rad8 {[%clk 0:02:49.1]} 14. a4 {[%clk 0:02:05.3]} 14...
e4 {[%clk 0:02:33.3]} 15. Nf4 {[%clk 0:01:55]} 15... Ne8 {[%clk 0:02:21]} 16.
Bxg7 {[%clk 0:01:51]} 16... Nxg7 {[%clk 0:02:20.3]} 17. dxe4 {[%clk 0:01:50.6]}
17... dxe4 {[%clk 0:02:18]} 18. Qxd7 {[%clk 0:01:49.2]} 18... Bxd7 {[%clk
0:02:12]} 19. c3 {[%clk 0:01:36.3]} 19... f5 {[%clk 0:02:11.3]} 20. Bf1 {[%clk
0:01:31.5]} 20... Bc8 {[%clk 0:02:06.6]} 21. h4 {[%clk 0:01:18.3]} 21... Ne5
{[%clk 0:02:05.2]} 22. Be2 {[%clk 0:01:17.1]} 22... Nd3+ {[%clk 0:02:02.4]} 23.
Bxd3 {[%clk 0:01:11.4]} 23... exd3 {[%clk 0:02:02.4]} 24. Kd2 {[%clk 0:01:12.1]}
24... Ne6 {[%clk 0:01:59.5]} 25. Nxd3 {[%clk 0:01:04.2]} 25... Bb7 {[%clk
0:01:57.6]} 26. Rhd1 {[%clk 0:00:58.7]} 26... Bf3 {[%clk 0:01:57.1]} 27. Re1
{[%clk 0:00:56.6]} 27... c5 {[%clk 0:01:55.7]} 28. bxc5 {[%clk 0:00:53.8]} 28...
bxc5 {[%clk 0:01:55.7]} 29. c4 {[%clk 0:00:53.5]} 29... Rd6 {[%clk 0:01:48.6]}
30. Kc3 {[%clk 0:00:49.2]} 30... Rfd8 {[%clk 0:01:45.1]} 31. Nbxc5 {[%clk
0:00:48]} 31... Nxc5 {[%clk 0:01:43.4]} 32. Nxc5 {[%clk 0:00:48.6]} 32... Rc8
{[%clk 0:01:42.3]} 33. Nd3 {[%clk 0:00:36.4]} 33... Be4 {[%clk 0:01:30.8]} 34.
Red1 {[%clk 0:00:35.9]} 34... Bf3 {[%clk 0:01:21.7]} 35. Rd2 {[%clk 0:00:34.5]}
35... Rcd8 {[%clk 0:01:20.4]} 36. Raa2 {[%clk 0:00:29.8]} 36... Bc6 {[%clk
0:01:13]} 37. Nc5 {[%clk 0:00:25.2]} 37... a5 {[%clk 0:01:09.2]} 38. Rxd6 {[%clk
0:00:21.6]} 38... Rxd6 {[%clk 0:01:08.5]} 39. Rd2 {[%clk 0:00:22.3]} 39... Rxd2
{[%clk 0:01:03.9]} 40. Kxd2 {[%clk 0:00:23.2]} 40... Kf7 {[%clk 0:01:04.5]} 41.
Kc3 {[%clk 0:00:17.9]} 41... Ke7 {[%clk 0:01:04.9]} 42. Kd4 {[%clk 0:00:18.5]}
42... Kd6 {[%clk 0:01:05.4]} 43. Nb3 {[%clk 0:00:18.9]} 43... Bxa4 {[%clk
0:01:04.8]} 44. Nxa5 {[%clk 0:00:19.6]} 44... Bc2 {[%clk 0:01:01.2]} 45. c5+
{[%clk 0:00:19.5]} 45... Ke6 {[%clk 0:01:00.5]} 46. Nc4 {[%clk 0:00:19.2]} 46...
Be4 {[%clk 0:00:59.5]} 47. Nd2 {[%clk 0:00:19.4]} 47... Bc6 {[%clk 0:00:58.6]}
48. f3 {[%clk 0:00:19.7]} 48... h6 {[%clk 0:00:58.1]} 49. e4 {[%clk 0:00:20.3]}
49... fxe4 {[%clk 0:00:56.2]} 50. fxe4 {[%clk 0:00:21.2]} 50... g5 {[%clk
0:00:56.4]} 51. hxg5 {[%clk 0:00:21]} 51... hxg5 {[%clk 0:00:56.7]} 52. Nf3
{[%clk 0:00:21.6]} 52... g4 {[%clk 0:00:56.1]} 53. Nh2 {[%clk 0:00:21.8]} 53...
Kf6 {[%clk 0:00:53.4]} 54. Nxg4+ {[%clk 0:00:22.4]} 1-0

[Event "Late-Titled-Tuesday-Blitz-April-23-2024"]
[Site "Chess.com"]
[Date "2024.04.23"]
[Round "11"]
[White "Mikhail_Bryakin"]
[Black "Polish_fighter3000"]
[Result "0-1"]
[WhiteElo "2821"]
[BlackElo "3086"]
[TimeControl "180+1"]
[EndTime "16:07:23 PDT"]
[Termination "Polish_fighter3000 won on time"]

1. d4 {[%clk 0:03:00.9]} 1... Nf6 {[%clk 0:03:00.9]} 2. c4 {[%clk 0:03:01.1]}
2... d6 {[%clk 0:03:00.3]} 3. Nf3 {[%clk 0:03:00.5]} 3... g6 {[%clk 0:03:00.7]}
4. g3 {[%clk 0:03:01.2]} 4... Bg7 {[%clk 0:02:57.9]} 5. Bg2 {[%clk 0:03:01.6]}
5... c6 {[%clk 0:02:56.1]} 6. Nc3 {[%clk 0:03:01.4]} 6... O-O {[%clk 0:02:55.3]}
7. O-O {[%clk 0:03:02]} 7... Bf5 {[%clk 0:02:51.8]} 8. Nh4 {[%clk 0:02:53.5]}
8... Be6 {[%clk 0:02:50.2]} 9. b3 {[%clk 0:02:51.2]} 9... d5 {[%clk 0:02:48.2]}
10. cxd5 {[%clk 0:02:41.9]} 10... cxd5 {[%clk 0:02:40.3]} 11. a4 {[%clk
0:02:36.3]} 11... Nc6 {[%clk 0:02:39]} 12. Nf3 {[%clk 0:02:32.3]} 12... Ne4
{[%clk 0:02:32.8]} 13. Na2 {[%clk 0:02:05.6]} 13... Bg4 {[%clk 0:01:57.7]} 14.
Bb2 {[%clk 0:01:42.9]} 14... Rc8 {[%clk 0:01:53.8]} 15. h3 {[%clk 0:01:39.4]}
15... Bf5 {[%clk 0:01:50.9]} 16. e3 {[%clk 0:01:36.3]} 16... Qd7 {[%clk
0:01:45.8]} 17. g4 {[%clk 0:01:32.8]} 17... Be6 {[%clk 0:01:45.5]} 18. Nd2
{[%clk 0:01:33.6]} 18... f5 {[%clk 0:01:35.2]} 19. Nxe4 {[%clk 0:01:18.8]} 19...
fxe4 {[%clk 0:01:30.1]} 20. f4 {[%clk 0:01:05.1]} 20... h5 {[%clk 0:01:17.9]}
21. gxh5 {[%clk 0:01:02.6]} 21... Bxh3 {[%clk 0:01:12]} 22. hxg6 {[%clk
0:00:39.4]} 22... Bg4 {[%clk 0:01:10.2]} 23. Qd2 {[%clk 0:00:35.8]} 23... Rf6
{[%clk 0:01:10.1]} 24. Kf2 {[%clk 0:00:29.6]} 24... a5 {[%clk 0:00:55]} 25. Rh1
{[%clk 0:00:29.6]} 25... Rxg6 {[%clk 0:00:48.2]} 26. Rag1 {[%clk 0:00:29.5]}
26... Kf7 {[%clk 0:00:47.3]} 27. Bf1 {[%clk 0:00:29.3]} 27... Rg8 {[%clk
0:00:33.4]} 28. Ke1 {[%clk 0:00:16.8]} 28... Bf6 {[%clk 0:00:29.1]} 29. Qf2
{[%clk 0:00:17]} 29... Qc7 {[%clk 0:00:20.6]} 30. Bb5 {[%clk 0:00:15.5]} 30...
Qb6 {[%clk 0:00:19.4]} 31. Ba3 {[%clk 0:00:11.4]} 31... Nxd4 {[%clk 0:00:18.1]}
32. exd4 {[%clk 0:00:01.5]} 32... Bxd4 {[%clk 0:00:19]} 0-1